fUST/lending_fUST_20251002
["ID","MTS","AMOUNT","RATE_DAILY","PERIOD"]
[388738318,1759342253874,-151.0,0.00020521,2]
[388738319,1759342253884,-153.056476,0.00020521,2]
[388738320,1759342253894,-602.85402588,0.00020547,2]
[388738321,1759342253903,-500.0,0.00020547,2]
[388738322,1759342253912,-500.0,0.00020547,2]
[388738323,1759342253921,-500.0,0.00020547,2]
[388738324,1759342253930,-500.0,0.00020547,2]
[388738325,1759342253940,-500.0,0.00020547,2]
[388738326,1759342253949,-500.0,0.00020547,2]
[388738327,1759342253959,-500.0,0.00020547,2]
[388738328,1759342253969,-500.0,0.00020547,2]
[388738329,1759342253979,-500.0,0.00020547,2]
[388738330,1759342253988,-598.18,0.00020547,2]
[388738331,1759342253997,-500.0,0.00020547,2]
[388738332,1759342254006,-500.0,0.00020547,2]
[388738333,1759342254015,-500.0,0.00020547,2]
[388738334,1759342254024,-500.0,0.00020547,2]
[388738335,1759342254034,-500.0,0.00020547,2]
[388738336,1759342254044,-500.0,0.00020547,2]
[388738337,1759342254057,-500.0,0.00020547,2]
[388738338,1759342254066,-500.0,0.00020547,2]
[388738339,1759342254076,-500.0,0.00020547,2]
[388738340,1759342254085,-928.86,0.00020547,2]
[388738341,1759342254094,-500.0,0.00020547,2]
[388738342,1759342254105,-500.0,0.00020547,2]
[388738343,1759342254115,-500.0,0.00020547,2]
[388738344,1759342254125,-500.0,0.00020547,2]
[388738345,1759342254136,-500.0,0.00020547,2]
[388738346,1759342254145,-529.16249108,0.00020547,2]
[388738347,1759342254154,-500.0,0.00020547,2]
[388738348,1759342254164,-833.61,0.00020547,2]
[388738349,1759342254174,-798.88,0.00020547,2]
[388738350,1759342254184,-500.0,0.00020547,2]
[388738351,1759342254194,-500.0,0.00020547,2]
[388738352,1759342254204,-500.0,0.00020547,2]
[388738353,1759342254213,-500.0,0.00020547,2]
[388738354,1759342254223,-500.0,0.00020547,2]
[388738355,1759342254233,-500.0,0.00020547,2]
[388738356,1759342254243,-638.54,0.00020547,2]
[388738357,1759342254252,-787.61,0.00020547,2]
[388738358,1759342254406,-228.04,0.00020547,2]
[388738359,1759342254416,-1021.25,0.00020547,2]
[388738360,1759342254426,-528.56,0.00020547,2]
[388738361,1759342254435,-500.0,0.00020547,2]
[388738362,1759342254445,-500.0,0.00020547,2]
[388738363,1759342254454,-500.0,0.00020547,2]
[388738364,1759342254463,-525.78,0.00020547,2]
[388738365,1759342254473,-229.51,0.00020547,2]
[388738366,1759342254483,-500.0,0.00020547,2]
[388738367,1759342254493,-500.0,0.00020547,2]
[388738368,1759342254502,-412.7,0.00020547,2]
[388738369,1759342254511,-500.0,0.00020547,2]
[388738370,1759342254522,-500.0,0.00020547,2]
[388738371,1759342254531,-500.0,0.00020547,2]
[388738372,1759342254540,-936.29,0.00020547,2]
[388738373,1759342254551,-500.0,0.00020547,2]
[388738374,1759342254561,-529.19,0.00020547,2]
[388738375,1759342254570,-571.99,0.00020547,2]
[388738376,1759342254579,-500.0,0.00020547,2]
[388738377,1759342254588,-251.92,0.00020547,2]
[388738378,1759342254598,-500.0,0.00020547,2]
[388738379,1759342254611,-500.0,0.00020547,2]
[388738380,1759342254621,-1006.67,0.00020547,2]
[388738381,1759342254630,-500.0,0.00020547,2]
[388738382,1759342254640,-500.0,0.00020547,2]
[388738383,1759342254650,-409.68,0.00020547,2]
[388738384,1759342254659,-500.0,0.00020547,2]
[388738385,1759342254669,-500.0,0.00020547,2]
[388738386,1759342254679,-500.0,0.00020547,2]
[388738387,1759342254689,-500.0,0.00020547,2]
[388738388,1759342254698,-185.73907084,0.00020547,2]
[388738389,1759342254707,-500.0,0.00020547,2]
[388738390,1759342254716,-500.0,0.00020547,2]
[388738391,1759342254726,-500.0,0.00020547,2]
[388738392,1759342254735,-440.0,0.00020547,2]
[388738393,1759342254744,-530.02,0.00020547,2]
[388738394,1759342254755,-500.0,0.00020547,2]
[388738395,1759342254765,-500.0,0.00020547,2]
[388738396,1759342254775,-500.0,0.00020547,2]
[388738397,1759342254784,-480.0,0.00020547,2]
[388738398,1759342254794,-500.0,0.00020547,2]
[388738399,1759342254807,-500.0,0.00020547,2]
[388738400,1759342254817,-500.0,0.00020547,2]
[388738401,1759342254826,-500.0,0.00020547,2]
[388738402,1759342254837,-500.0,0.00020547,2]
[388738403,1759342254848,-611.01,0.00020547,2]
[388738404,1759342254857,-2390.09,0.00020547,2]
[388738405,1759342254866,-1330.39,0.00020547,2]
[388738406,1759342254876,-500.0,0.00020547,2]
[388738407,1759342254887,-500.0,0.00020547,2]
[388738408,1759342254896,-500.0,0.00020547,2]
[388738409,1759342254907,-500.0,0.00020547,2]
[388738410,1759342254916,-1326.33,0.00020547,2]
[388738411,1759342254927,-500.0,0.00020547,2]
[388738412,1759342254938,-699.45,0.00020547,2]
[388738413,1759342254948,-1136.12,0.00020547,2]
[388738414,1759342254958,-682.72,0.00020547,2]
[388738415,1759342254967,-500.0,0.00020547,2]
[388738416,1759342254976,-500.0,0.00020547,2]
[388738417,1759342254986,-500.0,0.00020547,2]
[388738418,1759342254996,-498.83,0.00020547,2]
[388738419,1759342255006,-500.0,0.00020547,2]
[388738420,1759342255016,-500.0,0.00020547,2]
[388738421,1759342255025,-500.0,0.00020547,2]
[388738422,1759342255035,-1068.12,0.00020547,2]
[388738423,1759342255043,-500.0,0.00020547,2]
[388738424,1759342255054,-500.0,0.00020547,2]
[388738425,1759342255063,-500.0,0.00020547,2]
[388738426,1759342255073,-500.0,0.00020547,2]
[388738427,1759342255082,-500.0,0.00020547,2]
[388738428,1759342255091,-500.0,0.00020547,2]
[388738429,1759342255100,-877.5,0.00020547,2]
[388738430,1759342255110,-500.0,0.00020547,2]
[388738431,1759342255119,-151.0,0.00020547,2]
[388738432,1759342255129,-610.06,0.00020547,2]
[388738433,1759342255138,-1924.02,0.00020547,2]
[388738434,1759342255149,-1088.76,0.00020547,2]
[388738435,1759342255159,-564.25,0.00020547,2]
[388738436,1759342255168,-633.54,0.00020547,2]
[388738437,1759342255177,-5203.32,0.00020547,2]
[388738438,1759342255187,-722.56,0.00020547,2]
[388738439,1759342255196,-500.0,0.00020547,2]
[388738440,1759342255206,-1014.42,0.00020547,2]
[388738441,1759342255215,-500.0,0.00020547,2]
[388738442,1759342255224,-500.0,0.00020547,2]
[388738443,1759342255233,-500.0,0.00020547,2]
[388738444,1759342255242,-500.0,0.00020547,2]
[388738445,1759342255253,-501.11,0.00020547,2]
[388738446,1759342255263,-500.0,0.00020547,2]
[388738447,1759342255272,-1751.43,0.00020547,2]
[388738448,1759342255282,-500.0,0.00020547,2]
[388738449,1759342255291,-500.0,0.00020547,2]
[388738450,1759342255301,-558.3,0.00020547,2]
[388738451,1759342255312,-595.94,0.00020547,2]
[388738452,1759342255321,-500.0,0.00020547,2]
[388738453,1759342255330,-500.0,0.00020547,2]
[388738454,1759342255340,-661.13,0.00020547,2]
[388738455,1759342255349,-525.99,0.00020547,2]
[388738456,1759342255358,-500.0,0.00020547,2]
[388738457,1759342255368,-739.54,0.00020547,2]
[388738458,1759342255378,-500.0,0.00020547,2]
[388738459,1759342255387,-512.51,0.00020547,2]
[388738460,1759342255396,-500.0,0.00020547,2]
[388738461,1759342255406,-500.0,0.00020547,2]
[388738462,1759342255415,-500.0,0.00020547,2]
[388738463,1759342255426,-500.0,0.00020547,2]
[388738464,1759342255435,-368.67,0.00020547,2]
[388738465,1759342255446,-880.83,0.00020547,2]
[388738466,1759342255456,-500.0,0.00020547,2]
[388738467,1759342255465,-500.0,0.00020547,2]
[388738468,1759342255474,-823.5,0.00020547,2]
[388738469,1759342255483,-500.0,0.00020547,2]
[388738470,1759342255492,-500.0,0.00020547,2]
[388738471,1759342255501,-1437.2,0.00020547,2]
[388738472,1759342255510,-634.89,0.00020547,2]
[388738473,1759342255519,-825.35,0.00020547,2]
[388738474,1759342255528,-661.01,0.00020547,2]
[388738475,1759342255538,-1958.89,0.00020547,2]
[388738476,1759342255548,-683.07,0.00020547,2]
[388738477,1759342255557,-500.0,0.00020547,2]
[388738478,1759342255567,-500.0,0.00020547,2]
[388738479,1759342255577,-500.0,0.00020547,2]
[388738480,1759342255586,-500.0,0.00020547,2]
[388738481,1759342255595,-790.83,0.00020547,2]
[388738482,1759342255605,-655.96,0.00020547,2]
[388738483,1759342255614,-500.0,0.00020547,2]
[388738484,1759342255624,-566.82,0.00020547,2]
[388738485,1759342255634,-500.0,0.00020547,2]
[388738486,1759342255644,-500.0,0.00020547,2]
[388738487,1759342255655,-500.0,0.00020547,2]
[388738488,1759342255664,-551.0,0.00020547,2]
[388738489,1759342255674,-501.2,0.00020547,2]
[388738490,1759342255683,-500.0,0.00020547,2]
[388738491,1759342255693,-480.0,0.00020547,2]
[388738492,1759342255702,-500.0,0.00020547,2]
[388738493,1759342255712,-500.0,0.00020547,2]
[388738494,1759342255722,-1385.94,0.00020547,2]
[388738495,1759342255731,-500.0,0.00020547,2]
[388738496,1759342255740,-1406.52,0.00020547,2]
[388738497,1759342255750,-2613.49,0.00020547,2]
[388738498,1759342255759,-500.0,0.00020547,2]
[388738499,1759342255769,-817.28,0.00020547,2]
[388738500,1759342255778,-500.0,0.00020547,2]
[388738501,1759342255788,-1740.98,0.00020547,2]
[388738502,1759342255799,-942.29,0.00020547,2]
[388738503,1759342255811,-500.0,0.00020547,2]
[388738504,1759342255821,-151.0,0.00020568,2]
[388738505,1759342255831,-151.0,0.00020568,2]
[388738506,1759342255842,-151.0,0.00020568,2]
[388738507,1759342255852,-151.0,0.00020568,2]
[388738508,1759342255860,-151.0,0.00020568,2]
[388738509,1759342255870,-151.0,0.00020568,2]
[388738510,1759342255879,-1500.0,0.00020568,2]
[388738511,1759342255889,-1500.0,0.00020568,2]
[388738512,1759342255898,-160.0,0.00020623,2]
[388738513,1759342255908,-160.0,0.00020623,2]
[388738514,1759342255917,-160.0,0.00020623,2]
[388738515,1759342255926,-160.0,0.00020623,2]
[388738516,1759342255936,-160.0,0.00020623,2]
[388738517,1759342255944,-151.0,0.00020624,2]
[388738518,1759342255954,-191.578652,0.00020624,2]
[388738519,1759342255963,-151.0,0.00020624,2]
[388738520,1759342255972,-420.0,0.00020792,2]
[388738521,1759342255983,-500.0,0.00020816,2]
[388738522,1759342255992,-1260.01687714,0.00020816,2]
[388738523,1759342256002,-2000.0,0.00020816,2]
[388738524,1759342256011,-2000.0,0.00020816,2]
[388738525,1759342256021,-1282.94653091,0.00020816,2]
[388738526,1759342256030,-1500.0,0.00020816,2]
[388738527,1759342256040,-2000.0,0.00020816,2]
[388738528,1759342256049,-2000.0,0.00020816,2]
[388738529,1759342256059,-500.0,0.00020821,2]
[388738530,1759342256068,-500.0,0.00020821,2]
[388738531,1759342256077,-365.74,0.00020821,2]
[388738532,1759342256086,-500.0,0.00020821,2]
[388738533,1759342256096,-500.0,0.00020821,2]
[388738534,1759342256105,-500.0,0.00020821,2]
[388738535,1759342256114,-500.0,0.00020821,2]
[388738536,1759342256123,-500.0,0.00020821,2]
[388738537,1759342256132,-500.0,0.00020821,2]
[388738538,1759342256141,-500.0,0.00020821,2]
[388738539,1759342256151,-632.44,0.00020821,2]
[388738540,1759342256160,-500.0,0.00020821,2]
[388738541,1759342256169,-500.0,0.00020821,2]
[388738542,1759342256178,-500.0,0.00020821,2]
[388738543,1759342256187,-500.0,0.00020821,2]
[388738544,1759342256196,-429.89,0.00020821,2]
[388738545,1759342256205,-500.0,0.00020821,2]
[388738546,1759342256214,-500.0,0.00020821,2]
[388738547,1759342256224,-928.86,0.00020821,2]
[388738548,1759342256233,-500.0,0.00020821,2]
[388738549,1759342256243,-500.0,0.00020821,2]
[388738550,1759342256252,-571.3,0.00020821,2]
[388738551,1759342256262,-500.0,0.00020821,2]
[388738552,1759342256271,-500.0,0.00020821,2]
[388738553,1759342256280,-500.0,0.00020821,2]
[388738554,1759342256289,-833.61,0.00020821,2]
[388738555,1759342256299,-798.88,0.00020821,2]
[388738556,1759342256309,-500.0,0.00020821,2]
[388738557,1759342256319,-340.0,0.00020821,2]
[388738558,1759342256328,-500.0,0.00020821,2]
[388738559,1759342256338,-500.0,0.00020821,2]
[388738560,1759342256347,-500.0,0.00020821,2]
[388738561,1759342256356,-500.0,0.00020821,2]
[388738562,1759342256365,-787.61,0.00020821,2]
[388738563,1759342256374,-1021.25,0.00020821,2]
[388738564,1759342256384,-528.56,0.00020821,2]
[388738565,1759342256393,-500.0,0.00020821,2]
[388738566,1759342256402,-500.0,0.00020821,2]
[388738567,1759342256412,-500.0,0.00020821,2]
[388738568,1759342256422,-525.78,0.00020821,2]
[388738569,1759342256431,-500.0,0.00020821,2]
[388738570,1759342256442,-500.0,0.00020821,2]
[388738571,1759342256451,-500.0,0.00020821,2]
[388738572,1759342256461,-436.78,0.00020821,2]
[388738573,1759342256471,-151.0,0.00020821,2]
[388738574,1759342256480,-500.0,0.00020821,2]
[388738575,1759342256489,-936.29,0.00020821,2]
[388738576,1759342256498,-500.0,0.00020821,2]
[388738577,1759342256507,-529.19,0.00020821,2]
[388738578,1759342256516,-500.0,0.00020821,2]
[388738579,1759342256525,-612.5359093,0.00020821,2]
[388738580,1759342256534,-500.0,0.00020821,2]
[388738581,1759342256543,-1006.67,0.00020821,2]
[388738582,1759342256552,-500.0,0.00020821,2]
[388738583,1759342256561,-500.0,0.00020821,2]
[388738584,1759342256570,-500.0,0.00020821,2]
[388738585,1759342256579,-500.0,0.00020821,2]
[388738586,1759342256589,-500.0,0.00020821,2]
[388738587,1759342256598,-500.0,0.00020821,2]
[388738588,1759342256607,-500.0,0.00020821,2]
[388738589,1759342256617,-292.37,0.00020821,2]
[388738590,1759342256626,-500.0,0.00020821,2]
[388738591,1759342256635,-500.0,0.00020821,2]
[388738592,1759342256645,-228.791014,0.00020821,2]
[388738593,1759342256654,-500.0,0.00020821,2]
[388738594,1759342256663,-228.791014,0.00020821,2]
[388738595,1759342256671,-228.791014,0.00020821,2]
[388738596,1759342256680,-228.791014,0.00020821,2]
[388738597,1759342256690,-170.503986,0.00020821,2]
[388738598,1759342256699,-463.89373646,0.00020821,2]
[388738599,1759342256708,-500.0,0.00020821,2]
[388738600,1759342256717,-500.0,0.00020821,2]
[388738601,1759342256726,-500.0,0.00020821,2]
[388738602,1759342256736,-500.0,0.00020821,2]
[388738603,1759342256746,-500.0,0.00020821,2]
[388738604,1759342256755,-611.01,0.00020821,2]
[388738605,1759342256764,-2390.09,0.00020821,2]
[388738606,1759342256773,-1330.39,0.00020821,2]
[388738607,1759342256782,-500.0,0.00020821,2]
[388738608,1759342256792,-500.0,0.00020821,2]
[388738609,1759342256801,-360.0,0.00020821,2]
[388738610,1759342256814,-500.0,0.00020821,2]
[388738611,1759342256823,-1326.33,0.00020821,2]
[388738612,1759342256832,-500.0,0.00020821,2]
[388738613,1759342256842,-699.45,0.00020821,2]
[388738614,1759342256851,-1136.12,0.00020821,2]
[388738615,1759342256861,-682.72,0.00020821,2]
[388738616,1759342256871,-500.0,0.00020821,2]
[388738617,1759342256880,-500.0,0.00020821,2]
[388738618,1759342256891,-500.0,0.00020821,2]
[388738619,1759342256900,-485.61,0.00020821,2]
[388738620,1759342256909,-500.0,0.00020821,2]
[388738621,1759342256918,-500.0,0.00020821,2]
[388738622,1759342256928,-1068.12,0.00020821,2]
[388738623,1759342256937,-500.0,0.00020821,2]
[388738624,1759342256947,-500.0,0.00020821,2]
[388738625,1759342256957,-500.0,0.00020821,2]
[388738626,1759342256966,-500.0,0.00020821,2]
[388738627,1759342256975,-500.0,0.00020821,2]
[388738628,1759342256984,-877.5,0.00020821,2]
[388738629,1759342256995,-500.0,0.00020821,2]
[388738630,1759342257003,-1924.02,0.00020821,2]
[388738631,1759342257013,-1088.76,0.00020821,2]
[388738632,1759342257023,-564.25,0.00020821,2]
[388738633,1759342257032,-633.54,0.00020821,2]
[388738634,1759342257041,-5203.32,0.00020821,2]
[388738635,1759342257050,-722.56,0.00020821,2]
[388738636,1759342257059,-500.0,0.00020821,2]
[388738637,1759342257068,-1014.42,0.00020821,2]
[388738638,1759342257078,-500.0,0.00020821,2]
[388738639,1759342257087,-500.0,0.00020821,2]
[388738640,1759342257097,-420.0,0.00020821,2]
[388738641,1759342257108,-500.0,0.00020821,2]
[388738642,1759342257117,-501.11,0.00020821,2]
[388738643,1759342257126,-500.0,0.00020821,2]
[388738644,1759342257134,-1751.43,0.00020821,2]
[388738645,1759342257144,-500.0,0.00020821,2]
[388738646,1759342257153,-500.0,0.00020821,2]
[388738647,1759342257164,-558.3,0.00020821,2]
[388738648,1759342257173,-595.94,0.00020821,2]
[388738649,1759342257182,-336.08,0.00020821,2]
[388738650,1759342257191,-500.0,0.00020821,2]
[388738651,1759342257201,-661.13,0.00020821,2]
[388738652,1759342257210,-500.0,0.00020821,2]
[388738653,1759342257219,-739.54,0.00020821,2]
[388738654,1759342257229,-500.0,0.00020821,2]
[388738655,1759342257238,-500.0,0.00020821,2]
[388738656,1759342257248,-500.0,0.00020821,2]
[388738657,1759342257258,-500.0,0.00020821,2]
[388738658,1759342257268,-500.0,0.00020821,2]
[388738659,1759342257278,-880.83,0.00020821,2]
[388738660,1759342257287,-562.67,0.00020821,2]
[388738661,1759342257297,-500.0,0.00020821,2]
[388738662,1759342257428,-823.5,0.00020821,2]
[388738663,1759342257438,-380.0,0.00020821,2]
[388738664,1759342257447,-500.0,0.00020821,2]
[388738665,1759342257457,-1437.2,0.00020821,2]
[388738666,1759342257466,-634.89,0.00020821,2]
[388738667,1759342257475,-825.35,0.00020821,2]
[388738668,1759342257485,-661.01,0.00020821,2]
[388738669,1759342257494,-1958.89,0.00020821,2]
[388738670,1759342257503,-683.07,0.00020821,2]
[388738671,1759342257512,-500.0,0.00020821,2]
[388738672,1759342257522,-264.10171012,0.00020821,2]
[388738673,1759342257531,-500.0,0.00020821,2]
[388738674,1759342257541,-500.0,0.00020821,2]
[388738675,1759342257552,-790.83,0.00020821,2]
[388738676,1759342257561,-655.96,0.00020821,2]
[388738677,1759342257570,-500.0,0.00020821,2]
[388738678,1759342257579,-566.82,0.00020821,2]
[388738679,1759342257588,-500.0,0.00020821,2]
[388738680,1759342257598,-500.0,0.00020821,2]
[388738681,1759342257607,-500.0,0.00020821,2]
[388738682,1759342257617,-551.0,0.00020821,2]
[388738683,1759342257627,-501.2,0.00020821,2]
[388738684,1759342257636,-600.07,0.00020821,2]
[388738685,1759342257646,-500.0,0.00020821,2]
[388738686,1759342257655,-500.0,0.00020821,2]
[388738687,1759342257666,-1385.94,0.00020821,2]
[388738688,1759342257676,-500.0,0.00020821,2]
[388738689,1759342257685,-1406.52,0.00020821,2]
[388738690,1759342257695,-2613.49,0.00020821,2]
[388738691,1759342257704,-500.0,0.00020821,2]
[388738692,1759342257713,-817.28,0.00020821,2]
[388738693,1759342257722,-500.0,0.00020821,2]
[388738694,1759342257732,-1740.98,0.00020821,2]
[388738695,1759342257742,-942.29,0.00020821,2]
[388738696,1759342257753,-151.0,0.00020821,2]
[388738697,1759342257764,-151.0,0.00020821,2]
[388738698,1759342257774,-151.0,0.00020821,2]
[388738699,1759342257784,-222.45531,0.00020821,2]
[388738700,1759342257794,-205.931712,0.00020821,2]
[388738701,1759342257804,-500.0,0.00020821,2]
[388738702,1759342257818,-164.473959,0.00020821,2]
[388738703,1759342257827,-164.473959,0.00020821,2]
[388738704,1759342257837,-3181.4359996,0.00020862,2]
[388738705,1759342257846,-1004.39253887,0.00020868,2]
[388738706,1759342257856,-314.43405764,0.00020868,2]
[388738707,1759342257865,-1435.46496311,0.00020962,2]
[388738708,1759342257874,-500.0,0.00021,2]
[388738709,1759342257883,-500.0,0.00021,2]
[388738710,1759342257893,-4000.0,0.00021,4]
[388738711,1759342257902,-5763.33330385,0.00021009,2]
[388738712,1759342257912,-1500.0,0.00021068,2]
[388738713,1759342257921,-1500.0,0.00021068,2]
[388738714,1759342257931,-500.0,0.00021068,2]
[388738715,1759342257941,-1500.0,0.00021068,2]
[388738716,1759342257950,-500.0,0.00021068,2]
[388738717,1759342257959,-1500.0,0.00021068,2]
[388738718,1759342257969,-500.0,0.00021068,2]
[388738719,1759342257979,-500.0,0.00021095,2]
[388738720,1759342257989,-500.0,0.00021095,2]
[388738721,1759342258000,-477.09,0.00021095,2]
[388738722,1759342258011,-500.0,0.00021095,2]
[388738723,1759342258020,-446.84018183,0.00021095,2]
[388738724,1759342258029,-500.0,0.00021095,2]
[388738725,1759342258039,-500.0,0.00021095,2]
[388738726,1759342258048,-500.0,0.00021095,2]
[388738727,1759342258059,-500.0,0.00021095,2]
[388738728,1759342258068,-500.0,0.00021095,2]
[388738729,1759342258077,-480.0,0.00021095,2]
[388738730,1759342258087,-440.0,0.00021095,2]
[388738731,1759342258096,-500.0,0.00021095,2]
[388738732,1759342258106,-500.0,0.00021095,2]
[388738733,1759342258115,-500.0,0.00021095,2]
[388738734,1759342258124,-928.86,0.00021095,2]
[388738735,1759342258133,-500.0,0.00021095,2]
[388738736,1759342258143,-500.0,0.00021095,2]
[388738737,1759342258152,-500.0,0.00021095,2]
[388738738,1759342258161,-420.0,0.00021095,2]
[388738739,1759342258171,-500.0,0.00021095,2]
[388738740,1759342258180,-833.61,0.00021095,2]
[388738741,1759342258190,-798.88,0.00021095,2]
[388738742,1759342258199,-500.0,0.00021095,2]
[388738743,1759342258208,-500.0,0.00021095,2]
[388738744,1759342258217,-500.0,0.00021095,2]
[388738745,1759342258226,-151.0,0.00021095,2]
[388738746,1759342258235,-595.24,0.00021095,2]
[388738747,1759342258245,-215.061325,0.00021095,2]
[388738748,1759342258254,-151.0,0.00021095,2]
[388738749,1759342258263,-215.061325,0.00021095,2]
[388738750,1759342258273,-215.061325,0.00021095,2]
[388738751,1759342258282,-500.0,0.00021095,2]
[388738752,1759342258291,-215.061325,0.00021095,2]
[388738753,1759342258301,-787.61,0.00021095,2]
[388738754,1759342258311,-1021.25,0.00021095,2]
[388738755,1759342258320,-528.56,0.00021095,2]
[388738756,1759342258329,-500.0,0.00021095,2]
[388738757,1759342258339,-500.0,0.00021095,2]
[388738758,1759342258348,-500.0,0.00021095,2]
[388738759,1759342258357,-525.78,0.00021095,2]
[388738760,1759342258367,-151.0,0.00021095,2]
[388738761,1759342258378,-500.0,0.00021095,2]
[388738762,1759342258387,-151.0,0.00021095,2]
[388738763,1759342258396,-276.12,0.00021095,2]
[388738764,1759342258406,-580.88,0.00021095,2]
[388738765,1759342258416,-500.0,0.00021095,2]
[388738766,1759342258425,-936.29,0.00021095,2]
[388738767,1759342258435,-500.0,0.00021095,2]
[388738768,1759342258444,-529.19,0.00021095,2]
[388738769,1759342258453,-500.0,0.00021095,2]
[388738770,1759342258463,-500.0,0.00021095,2]
[388738771,1759342258474,-1006.67,0.00021095,2]
[388738772,1759342258483,-500.0,0.00021095,2]
[388738773,1759342258493,-500.0,0.00021095,2]
[388738774,1759342258502,-500.0,0.00021095,2]
[388738775,1759342258511,-500.0,0.00021095,2]
[388738776,1759342258521,-278.74,0.00021095,2]
[388738777,1759342258530,-500.0,0.00021095,2]
[388738778,1759342258539,-500.0,0.00021095,2]
[388738779,1759342258550,-500.0,0.00021095,2]
[388738780,1759342258560,-500.0,0.00021095,2]
[388738781,1759342258569,-500.0,0.00021095,2]
[388738782,1759342258579,-500.0,0.00021095,2]
[388738783,1759342258589,-500.0,0.00021095,2]
[388738784,1759342258599,-500.0,0.00021095,2]
[388738785,1759342258609,-500.0,0.00021095,2]
[388738786,1759342258618,-500.0,0.00021095,2]
[388738787,1759342258628,-611.01,0.00021095,2]
[388738788,1759342258638,-2390.09,0.00021095,2]
[388738789,1759342258648,-1330.39,0.00021095,2]
[388738790,1759342258657,-500.0,0.00021095,2]
[388738791,1759342258667,-500.0,0.00021095,2]
[388738792,1759342258675,-500.0,0.00021095,2]
[388738793,1759342258687,-1326.33,0.00021095,2]
[388738794,1759342258696,-500.0,0.00021095,2]
[388738795,1759342258705,-699.45,0.00021095,2]
[388738796,1759342258715,-1136.12,0.00021095,2]
[388738797,1759342258724,-682.72,0.00021095,2]
[388738798,1759342258734,-604.5,0.00021095,2]
[388738799,1759342258744,-500.0,0.00021095,2]
[388738800,1759342258753,-500.0,0.00021095,2]
[388738801,1759342258765,-500.0,0.00021095,2]
[388738802,1759342258782,-500.0,0.00021095,2]
[388738803,1759342258793,-1068.12,0.00021095,2]
[388738804,1759342258803,-500.0,0.00021095,2]
[388738805,1759342258815,-500.0,0.00021095,2]
[388738806,1759342258824,-500.0,0.00021095,2]
[388738807,1759342258834,-500.0,0.00021095,2]
[388738808,1759342258843,-500.0,0.00021095,2]
[388738809,1759342258852,-877.5,0.00021095,2]
[388738810,1759342258861,-500.0,0.00021095,2]
[388738811,1759342258870,-1924.02,0.00021095,2]
[388738812,1759342258879,-1088.76,0.00021095,2]
[388738813,1759342258891,-564.25,0.00021095,2]
[388738814,1759342258901,-633.54,0.00021095,2]
[388738815,1759342258910,-5203.32,0.00021095,2]
[388738816,1759342258919,-722.56,0.00021095,2]
[388738817,1759342258928,-500.0,0.00021095,2]